Cogmind - Beta 15 @@@ ROGUE MODE // 2025.07.16 @ 00:00:06 Player: chebyrekser Result: Destroyed by as-66094 with Assembled Heavy Rifle Performance ------------- Evolutions (0) 0 Regions Visited (2) 400 Robots Destroyed (19) 95 Value Destroyed (444) 444 Prototype IDs (2) 40 Alien Tech Used (0) 0 Bonus (0) 0 TOTAL SCORE: 979 Bonus ------- None Cogmind --------- Core Integrity 0/250 Matter 185/300 Energy 173/250 System Corruption 1% Temperature Cool (0) Movement Rolling (140) Ox4 Location -10/Mines Parts ------- > --- POWER (1) -------- Ion Engine > --- PROPULSION (2) --- Light Treads Wheel > --- UTILITY (2) ------ High-capacity Storage Unit Structural Scanner > --- WEAPON (2) ------- (None) > --- INVENTORY (20) --- Light Ion Engine Heat Sink Improved Heat Sink Visual Processing Unit Sensor Array Signal Interpreter ECM Suite Beam Cannon Light Assault Rifle Grenade Launcher Mining Laser Peak State ------------ > --- POWER ------------ Ion Engine > --- PROPULSION ------- Light Treads Light Treads > --- UTILITY ---------- High-capacity Storage Unit Seismic Detector > --- WEAPON ----------- Assault Rifle Light Assault Rifle > --- INVENTORY -------- Ion Engine Light Ion Engine Light Treads Light Treads Light Treads Aluminum Leg Aluminum Leg Wheel Heat Sink Improved Heat Sink Visual Processing Unit Signal Interpreter Medium Laser Beam Cannon Light Assault Rifle Light Assault Rifle Mining Laser [Rating: 9] Favorites ----------- Power Ion Engine Engine Ion Engine Propulsion Light Treads Treads Light Treads Wheel Wheel Utility Seismic Detector Device Seismic Detector Storage High-capacity Storage Unit Weapon Light Assault Rifle Energy Cannon Beam Cannon Ballistic Gun Light Assault Rifle Launcher Grenade Launcher Special Weapon Mining Laser Build | -11 -10 -10 ------- Run | Yrd Mat Min Slots Evolved . | . . . Power . | . . . Propulsion . | . . . Utility . | . . . Weapon . | . . . Parts Attached 21 | 6 9 6 Power 2 | . 1 1 Engine 2 | . 1 1 Core . | . . . Reactor . | . . . Propulsion 6 | 2 2 2 Treads 5 | 2 2 1 Leg . | . . . Wheel 1 | . . 1 Hover . | . . . Flight . | . . . Utility 5 | 2 3 . Device 2 | 1 1 . Storage 3 | 1 2 . Processor . | . . . Hackware . | . . . Protection . | . . . Artifact . | . . . Weapon 8 | 2 3 3 Energy Gun . | . . . Energy Cannon 1 | . . 1 Ballistic Gun 5 | 2 2 1 Ballistic Cannon . | . . . Launcher 1 | . . 1 Special Weapon 1 | . 1 . Impact Weapon . | . . . Slashing Weapon . | . . . Piercing Weapon . | . . . Special Melee Weapon . | . . . Unidentified Prototypes . | . . . Parts Lost 10 | . 2 8 Power 1 | . . 1 Propulsion 4 | . 1 3 Utility 1 | . 1 . Weapon 4 | . . 4 Highest Loss Streak 8 | . 2 8 To Critical Strikes . | . . . Average Backups 13 | 5 14 15 Power 1 | 1 1 1 Propulsion 4 | 2 4 2 Utility 3 | . 3 6 Weapon 4 | . 4 5 Tool/Special . | . . . Unused Backups 13 | 1 4 8 Power 1 | . . 1 Propulsion 3 | 1 2 . Utility 7 | . 1 6 Weapon 2 | . 1 1 Tool/Special . | . . . Average Slot Usage (%) 95 | . 95 96 Engine 10 | . 10 14 Treads 27 | . 27 25 Device 13 | . 13 14 Storage 14 | . 14 14 Ballistic Gun 26 | . 26 23 Special Weapon 1 | . 1 . Peak Build Rating 9 | 6 9 9 Average Rating 7 | 4 7 8 On Entrance 5 | . 6 9 Naked Turns . | . . . Heaviest Build 49 | 8 49 49 Greatest Support 40 | 40 40 40 Greatest Overweight (x) 1 | . 1 1 Average Overweight (x) . | . . 1 Largest Inventory Capacity 20 | 8 20 20 Average Capacity 17 | 6 18 20 Most Carried 20 | 7 20 17 Average Carried 13 | 5 14 15 Final Capacity 20 | 8 20 20 Final Carried 17 | 6 17 11 Class Distribution -------------------- 100% | Mutant Dominant Class ---------------- Mutant | -10/Materials Mutant | -10/Mines Resources | -11 -10 -10 ----------- Run | Yrd Mat Min Matter Collected 621 | 240 381 . Remotely . | . . . Salvage Created 616 | 29 578 9 Parts 49 | 4 45 . Haulers Intercepted 2 | . 2 . Recyclers Shooed . | . . . Parts Field Recycled . | . . . Retrieved Matter . | . . . Parts Self-Destructed . | . . . Prevented . | . . . Kills | -11 -10 -10 ------- Run | Yrd Mat Min Combat Hostiles Destroyed 18 | . 11 7 Guns 11 | . 11 . Cannons 1 | . . 1 AOE 6 | . . 6 Classes Destroyed 8 | 1 5 2 Builder 2 | . 2 . Tunneler 1 | 1 . . Hauler 2 | . 2 . Watcher 2 | . 2 . Swarmer 3 | . 3 . Grunt 8 | . 8 . Demolisher 1 | . . 1 Assembled 6 | . . 6 Best Kill Streak 7 | 1 3 7 Combat Bots Only 7 | . 3 7 Max Kills in Single Turn 3 | 1 2 3 Gunslinging 1 | . 1 . Exploded 3 | . . 3 Melee . | . . . Uniques/NPCs Destroyed . | . . . Combat | -11 -10 -10 -------- Run | Yrd Mat Min Hostile Shots Fired 94 | . 56 38 Missed 24 | . 16 8 Hits 70 | . 40 30 Melee 3 | . . 3 Projectile 67 | . 40 27 AOE 10 | . . 10 Critical Strikes 1 | . 1 . Damage Taken 1329 | . 526 803 Core 252 | . 77 175 Absorbed by Shields . | . . . Core Remaining (%) 100 | 100 . . Volleys Fired 86 | 7 67 12 Largest 2 | 2 2 2 Hottest 100 | 40 100 80 Shots Fired 163 | 14 133 16 Gun 151 | 14 132 5 Cannon 4 | . . 4 Launcher 7 | . . 7 Special 1 | . 1 . Kinetic 151 | 14 132 5 Thermal 5 | . 1 4 Explosive 7 | . . 7 Electromagnetic . | . . . Robot Hit Streak 8 | 3 8 4 Robot Miss Streak 3 | 1 3 1 Penetration Max . | . . . Secondary Targets 2 | . 2 . Max Gunslinging Chain 1 | . 1 . Shots Hit Robots 102 | 9 84 9 Core Hits 53 | 3 34 16 Critical Kills . | . . . Critical Parts Destroyed 1 | . 1 . Critical Strikes 1 | . 1 . Destroy 1 | . 1 . Melee Attacks . | . . . Impact . | . . . Slashing . | . . . Piercing . | . . . Sneak Attacks . | . . . Combat Hostiles . | . . . Follow-up Attacks . | . . . Damage Inflicted 1390 | 80 826 484 Guns 920 | 80 826 14 Cannons 52 | . . 52 Explosions 417 | . . 417 Melee . | . . . Ramming 1 | . . 1 Kinetic 920 | 80 826 14 Thermal 52 | . . 52 Explosive 417 | . . 417 Electromagnetic . | . . . Impact . | . . . Slashing . | . . . Piercing . | . . . Highest Corruption 1 | . 1 1 Average Corruption 1 | . 1 1 Corruption Purged . | . . . Corruption Blocked . | . . . Effects 9 | . 8 1 Message Errors 5 | . 5 . Matter Fused 1 | . 1 . Parts Fused 1 | . 1 . Data Loss (minor) 1 | . 1 . Data Loss (major) 1 | . . 1 Overload Shots . | . . . Overflow Damage 12 | . . 12 Projectiles 5 | . . 5 Explosions 7 | . . 7 Melee . | . . . Knockbacks . | . . . Impact . | . . . Kinetic . | . . . Secondary . | . . . Self-Inflicted Damage 106 | . . 106 Shots 4 | . . 4 Rammed 1 | . . 1 Targets Rammed 1 | . . 1 Kicked . | . . . Crushed . | . . . Highest Temperature 80 | . 30 80 Average Temperature 17 | . 10 39 Received Heat Transfer 325 | . 285 40 Siege Activations . | . . . Martial Activations . | . . . Shielding Activations . | . . . Robots Disrupted . | . . . Combat Hostiles . | . . . Robots Corrupted . | . . . Combat Hostiles . | . . . Parts Fried . | . . . Impact Corruptions . | . . . Robots Melted . | . . . Combat Hostiles . | . . . Parts Melted . | . . . Heat Transferred 111 | . . 111 Parts Sabotaged . | . . . Parts Stolen . | . . . Parts Stripped . | . . . Power Chain Reactions . | . . . Alert | -11 -10 -10 ------- Run | Yrd Mat Min Maximum Alert Level . | . . . Low Security (%) 100 | 100 100 100 Level 1 . | . . . Level 2 . | . . . Level 3 . | . . . Level 4 . | . . . Level 5 . | . . . High Security . | . . . Max Security . | . . . Peak Influence 60 | 5 60 45 Initial 4 | . . 4 Average 12 | . 14 6 Influence Increases 413 | 5 348 60 Destroy 0b10 Robot/C 240 | . 220 20 Destroy 0b10 Robot/NC 35 | 5 30 . Destroy Leader 68 | . 58 10 Successful Hack 9 | . 9 . Disable Machine 15 | . 15 . Destroy Structure 31 | . 1 30 Lose Combat Pursuer 15 | . 15 . Influence Decreases 393 | 5 336 52 Entered New Map 8 | . . 8 Time Decay 321 | 5 302 14 Lost Part 50 | . 20 30 Purge Threat 14 | . 14 . Squads Dispatched 2 | . 2 . Investigation . | . . . Extermination . | . . . Reinforcement 2 | . 2 . Assault . | . . . Garrison . | . . . Intercept . | . . . Searches Triggered . | . . . Construction Impeded . | . . . Haulers Reinforced . | . . . Active Scanning Responses . | . . . Cargo Convoy Interrupts . | . . . Stealth | -11 -10 -10 --------- Run | Yrd Mat Min Distress Signals 2 | . 2 . Communications Jammed . | . . . Distress Signals . | . . . Times Spotted 29 | . 18 11 Peak Tracking Total 9 | . 4 9 Tactical Retreats 1 | . 1 . Traps | -11 -10 -10 ------- Run | Yrd Mat Min Traps Triggered 3 | . 3 . Indirectly . | . . . Trap Hack Attempts . | . . . Triggered . | . . . Disarmed . | . . . Reprogrammed . | . . . Reused . | . . . Traps Extracted . | . . . Installed . | . . . Triggered . | . . . Machines | -11 -10 -10 ---------- Run | Yrd Mat Min Machines Disabled 1 | . 1 . Max in Single Turn 1 | . 1 . Machines Repaired . | . . . Machines Dismantled . | . . . Machines Sabotaged . | . . . Overloaded Fab Kills . | . . . Hacking | -11 -10 -10 --------- Run | Yrd Mat Min Machines Accessed 4 | . 4 . Terminals 4 | . 4 . Fabricators . | . . . Repair Stations . | . . . Recycling Units . | . . . Scanalyzers . | . . . Garrison Access . | . . . Total Hacks 14 | . 14 . Successful 9 | . 9 . Failed 5 | . 5 . Catastrophic 1 | . 1 . Database Lockouts . | . . . Manual 11 | . 11 . Terminals 14 | . 14 . Fabricators . | . . . Repair Stations . | . . . Recycling Units . | . . . Scanalyzers . | . . . Garrison Access . | . . . Terminal Hacks 5 | . 5 . Prototype ID Bank 1 | . 1 . Unreport Threat 1 | . 1 . Zone Layout 3 | . 3 . Fabricator Hacks . | . . . Repair Station Hacks . | . . . Recycling Unit Hacks . | . . . Scanalyzer . | . . . Garrison Access Hacks . | . . . Unauthorized Hacks 4 | . 4 . Terminals 4 | . 4 . Botnet 4 | . 4 . Fabricators . | . . . Repair Stations . | . . . Recycling Units . | . . . Scanalyzers . | . . . Garrison Access . | . . . Data Cores Recovered . | . . . Used . | . . . Hacking Detections 4 | . 4 . Full Trace Events 1 | . 1 . Feedback Events . | . . . Feedback Blocked . | . . . Robot Schematics Acquired . | . . . Robots Built . | . . . Authchips . | . . . Time . | . . . Total Robot Build Rating . | . . . Part Schematics Acquired . | . . . Parts Built . | . . . Authchips . | . . . Time . | . . . Total Part Build Rating . | . . . Parts Repaired . | . . . Time . | . . . Parts Recycled . | . . . Recycled Matter . | . . . Retrieved Matter . | . . . Retrieved Components . | . . . Parts Scanalyzed . | . . . Part Schematics Acquired . | . . . Parts Damaged . | . . . Bothacking | -11 -10 -10 ------------ Run | Yrd Mat Min Used RIF Installer . | . . . Robots Hacked . | . . . Non-combat . | . . . Combat . | . . . Robot Hacks Applied . | . . . Relay Couplers Released . | . . . Fabnet Peak Effective % . | . . . Robots Rewired . | . . . Allies Hacked . | . . . Hacks Repelled . | . . . Allies | -11 -10 -10 -------- Run | Yrd Mat Min Total Allies . | . . . Largest Group . | . . . Highest-Rated Group . | . . . Highest-Rated Ally . | . . . Total Orders . | . . . Ally Attacks . | . . . Total Damage . | . . . Kills . | . . . Allies Corrupted . | . . . Allies Melted . | . . . Intel | -11 -10 -10 ------- Run | Yrd Mat Min Active Infowar (turns) 1310 | 21 1163 126 Structural 178 | . 52 126 Seismic 1132 | 21 1111 . Robot Analysis Total . | . . . Derelict Logs Recovered . | . . . Drone Launches . | . . . Drone Recoveries . | . . . Exploration | -11 -10 -10 ------------- Run | Yrd Mat Min Turns Passed 1456 | 145 1185 126 Spaces Moved 536 | 74 425 37 Core 8 | 8 . . Treads 528 | 66 425 37 Legs . | . . . Wheels . | . . . Hover . | . . . Flight . | . . . Fastest Speed 50 | 50 160 240 Average Speed 210 | 148 218 240 Slowest Speed 240 | 160 240 240 Overloaded Moves . | . . . Propulsion Burnouts . | . . . Robots Hopped . | . . . Potential Cave-ins . | . . . Cave-ins Triggered . | . . . Exploration Rate (%) 37 | 4 85 24 Regions Visited 2 Branch Regions 1 Pre-discovered Areas . | . . . Known Exits Taken . | . . . Unknown Exits Taken 2 | 1 1 . Scrap Searched . | . . . Spaces Dug . | . . . Terrain Destroyed 42 | . . 42 Melee . | . . . Projectile . | . . . AOE 42 | . . 42 Terrain Rammed . | . . . Walls Destroyed . | . . . Machines Disabled . | . . . Actions | -11 -10 -10 --------- Run | Yrd Mat Min Total 721 | 97 566 58 Wait 33 | . 32 1 Move 534 | 73 424 37 Hop . | . . . Pick Up 34 | 10 24 . Fast Attach 3 | 3 . . Attach 15 | 3 6 6 Detach . | . . . Swap 6 | . 5 1 Drop 9 | 1 8 . Fire 86 | 7 67 12 Melee . | . . . Ram . | . . . Kick . | . . . Crush 1 | . . 1 Escape Stasis . | . . . Rewire . | . . . Trap . | . . . Miscellaneous . | . . . Route ------- -11/Scrapyard -10/Materials (discovered 4 exits: [*Mat x2] / [*Min] / [*Sub]) -10/Mines History --------- Turn | Location | Event 2 | -11/Scrapyard | Met Revision 17 6 | -11/Scrapyard | Discovered new exit (range 15) 146 | -11/Scrapyard | Entered Materials 188 | -10/Materials | Discovered new exit (range 12) 303 | -10/Materials | Build established: Mutant 845 | -10/Materials | Discovered new exit (range 15) 963 | -10/Materials | Discovered new exit (range 7) 1316 | -10/Materials | Discovered new exit (range 9) 1331 | -10/Materials | Entered Mines 1402 | -10/Mines | Assembled infested the area 1432 | -10/Mines | Core integrity fell below 50% 1456 | -10/Mines | Core integrity fell below 20% 1457 | -10/Mines | Destroyed by as-66094 with Assembled Heavy Rifle Last Messages --------------- The unstable cave ceiling collapses. U-05 Engineer destroyed. Lgt. Treads destroyed. Destroyed Lgt. Treads. The unstable cave ceiling collapses. Wheel crushed. as-72376 destroyed. The unstable cave ceiling collapses. as-96094 destroyed. Destroyed Asb. F-torch. The unstable cave ceiling collapses. Knocked back. as-38304 destroyed. as-11557 destroyed. as-19002 destroyed. Lgt. Assault Rifle destroyed. The unstable cave ceiling collapses. as-42086 destroyed. Grenade Launcher destroyed. Destroyed Grenade Launcher. Map ----- +----------------------------------------------------+ | | | | | | | | | | | | | | | | | | | | | | | ??????????????????????????????###########????????? | | ?????????????????????????????###################?? | | ????????????????????????????#### ##########? | | ????????????????????????????### ###? | | ????????????????????????????## ##? | | ????????????????????????????## ##? | | ????????????????????????????## ###? | | ????????????????????????????### ### ###?? | | ????????????????????????????### ######### ###?? | | ?????????????????????########## ########## ##??? | | ????????????????????########### ##?????### ###?# | | ???????????????????#### # ##??????### ##### | | ????????????????? #### ####??????### #### | | ???????????????## ### # ####???????## ### | | ????????????## ## # @ ##?????????## | | ????????????## ##?????????## | | ?????????? a ##????????### | | ??????????" a % # ##????????## | | ??????????? a % ###?????# | | ???????????=# ###?????## | | ??????????? # # # ##??????### | | ??????????? ## # ??????### # | | ???????????### ## !!! ??????### ## | | ????????????# ### ? ! ?????## """ ### | | ????????????? ##### #???# """ ### | | ?????????????? ###### !! ##??? ?"" ##? | | ???????????????????## ###???? ?? ##? | | ?????????????????????##### ####?????? ???? ??? | | ?????????????????????###### ####???????????? ??? | | ?????????????????????????#######????????????? ??? | | ??????????????????????????#####??????????????????? | | ?????????????????????????????????????????????????? | | ?????????????????????????????????????????????????? | | ?????????????????????????????????????????????????? | | ?????????????????????????????????????????????????? | | ?????????????????????????????????????????????????? | | ?????????????????????????????????????????????????? | | ?????????????????????????????????????????????????? | | ?????????????????????????????????????????????????? | +----------------------------------------------------+ Best States ------------- Heat Dissipation 25 Energy Generation 10 Energy Capacity 250 Matter Stores 300 Matter Capacity 300 Sight Range 16 Terrain Scan Density 10 Evasion (%) 50 Recoil Reduction 2 Item Schematics ----------------- None Robot Schematics ------------------ None Fabricated ------------ Nothing Repaired ---------- Nothing Alien Tech Used ----------------- None Achievements -------------- None Challenges ------------ None Game ------ Seed HelicalExoskeletonTorch Manual? 0 Play Time 00:10:02 Cumulative 13.3 hours Start 2025.07.15 @ 23:50:27 End 2025.07.16 @ 00:00:06 Sessions 1 Manual Loads 0 Difficulty Rogue Special Mode None Game No. 8 Rogue 8 Adventurer 0 Explorer 0 Win Type - Total 1 Types 1/0/0/0/0/0/0/0/0/0 Lore% 27 Gallery% 19 Achievement% 24 Wizard Run 0 Options --------- Layout 1 ASCII 0 Keyboard 0 Movement Mouse Keybinds 0 Fullscreen 1 Font 24/Smallcaps Map View 50x35 Zoom Use 0% Tactical HUD 0 Map Filters NONE Filters NONE Steam 1 RUN: f22be29e-362d-441c-9ec4-d1bf38d9212f